bitfinex/quotes_SOLUSD_20240827
["timestamp","ask_amount","ask_price","bid_price","bid_amount"]
[1724726736467,20.0,158.76,158.68,6.3016]
[1724726736777,20.0,158.76,158.68,16.07079625]
[1724726736957,45.0,158.75,158.68,16.07079625]
[1724726737784,6.3001,158.73,158.67,30.9331]
[1724726738664,45.0,158.72,158.67,30.9331]
[1724726738877,45.0,158.72,158.67,15.7558]
[1724726739275,71.3006,158.72,158.64,16.27229625]
[1724726740677,6.56246867,158.71,158.64,16.27229625]
[1724726742463,6.56246867,158.71,158.65,7.125721]
[1724726745571,12.86336867,158.71,158.65,0.822621]
[1724726745893,65.0,158.7,158.65,0.822621]
[1724726746055,20.0,158.68,158.65,0.822621]
[1724726746256,51.3024,158.67,158.65,0.822621]
[1724726747293,45.0,158.67,158.65,0.822621]
[1724726747581,20.0,158.66,158.65,0.822621]
[1724726747793,65.0,158.66,158.65,0.822621]
[1724726747958,71.3027,158.66,158.65,0.822621]
[1724726750205,51.3027,158.66,158.65,0.822621]
[1724726750686,71.3027,158.66,158.65,0.822621]
[1724726753761,77.86596673,158.66,158.65,0.822621]
[1724726759088,103.49386298,158.66,158.65,0.822621]
[1724726759707,103.49386298,158.66,158.65,0.697221]
[1724726761637,93.72466673,158.66,158.65,0.697221]
[1724726765462,93.72466673,158.66,158.65,0.571821]
[1724726768891,93.72466673,158.66,158.55,16.1367]
[1724726768892,26.3054,158.6,158.55,16.1367]
[1724726769091,51.3056,158.59,158.55,16.1367]
[1724726769290,45.0,158.59,158.55,16.1367]
[1724726770116,45.0,158.6,158.55,16.1367]
[1724726771424,65.0,158.6,158.55,16.1367]
[1724726771900,77.87178005,158.6,158.55,16.1367]
[1724726779113,6.56658005,158.6,158.55,16.1367]
[1724726779298,6.56658005,158.6,158.57,9.76919625]
[1724726779497,26.3045,158.62,158.57,9.76919625]
[1724726779821,20.0,158.6,158.55,25.90589625]
[1724726780024,26.3053,158.6,158.55,16.1367]
[1724726780617,45.0,158.59,158.55,16.1367]
[1724726780793,51.3055,158.59,158.55,16.1367]
[1724726781111,20.0,158.58,158.52,6.308]
[1724726781293,45.0,158.57,158.52,6.308]
[1724726781710,45.0,158.57,158.51,21.5074]
[1724726781915,20.0,158.56,158.51,15.1988]
[1724726782204,45.0,158.55,158.51,15.1988]
[1724726783129,6.3077,158.54,158.51,15.1988]
[1724726783461,6.3077,158.54,158.49,0.822621]
[1724726783462,20.0,158.54,158.49,0.822621]
[1724726783615,45.0,158.53,158.49,0.822621]
[1724726784004,45.0,158.53,158.49,10.59181725]
[1724726784202,45.0,158.53,158.49,0.822621]
[1724726784402,45.0,158.53,158.49,10.59181725]
[1724726784819,45.0,158.53,158.49,18.16297963]
[1724726785125,20.0,158.58,158.51,9.76919625]
[1724726785327,20.0,158.56,158.51,9.76919625]
[1724726785504,45.0,158.55,158.5,31.84999625]
[1724726786005,45.0,158.55,158.52,9.76919625]
[1724726786205,20.0,158.58,158.52,9.76919625]
[1724726786434,45.0,158.57,158.52,9.76919625]
[1724726787207,45.0,158.57,158.53,6.3079]
[1724726787924,45.0,158.57,158.53,21.5067]
[1724726788528,45.0,158.57,158.53,15.1988]
[1724726790135,51.56768595,158.57,158.53,15.1988]
[1724726790339,20.0,158.56,158.51,6.3086]
[1724726790545,45.0,158.55,158.51,6.3086]
[1724726790718,45.0,158.55,158.5,25.54129625]
[1724726791029,45.0,158.55,158.5,22.0811]
[1724726794414,45.0,158.55,158.51,6.3087]
[1724726794609,6.56768595,158.57,158.52,6.3081]
[1724726795007,6.56768595,158.57,158.53,9.76919625]
[1724726796529,20.0,158.56,158.52,6.3081]
[1724726796866,45.0,158.55,158.51,16.07789625]
[1724726801538,20.0,158.56,158.51,16.07789625]
[1724726801539,20.0,158.58,158.53,15.7695]
[1724726801842,20.0,158.56,158.5,6.309]
[1724726802140,45.0,158.55,158.5,16.07819625]
[1724726803444,45.0,158.55,158.5,7.57069335]
[1724726803622,45.0,158.55,158.5,16.07819625]
[1724726804247,45.0,158.55,158.51,6.3086]
[1724726806551,42.3314,158.58,158.51,6.3086]
[1724726806731,45.0,158.57,158.51,6.3086]
[1724726807247,26.56531277,158.56,158.51,6.3086]
[1724726807449,45.0,158.55,158.51,6.3086]
[1724726808038,6.56531277,158.56,158.52,6.3082]
[1724726808239,6.56531277,158.56,158.52,7.56972522]
[1724726808652,6.56531277,158.56,158.52,6.3082]
[1724726810265,6.56531277,158.56,158.53,6.3077]
[1724726810554,6.56531277,158.56,158.52,6.3083]
[1724726810945,26.3088,158.51,158.49,0.822621]
[1724726811149,20.0,158.51,158.49,0.822621]
[1724726811633,6.3085,158.52,158.49,0.822621]
[1724726811951,45.0,158.51,158.49,0.822621]
[1724726812741,65.0,158.51,158.49,0.822621]
[1724726813068,81.077996,158.51,158.49,0.822621]
[1724726815154,6.3091,158.5,158.49,0.822621]
[1724726815467,51.3091,158.5,158.49,0.822621]
[1724726817450,67.64365821,158.5,158.49,0.822621]
[1724726817758,57.87446196,158.5,158.49,0.822621]
[1724726820553,51.56536196,158.5,158.49,0.822621]
[1724726821173,57.87446196,158.5,158.49,0.822621]
[1724726824367,73.91146196,158.5,158.49,0.697221]
[1724726824667,26.3117,158.44,158.38,15.9909]
[1724726824855,45.0,158.43,158.38,15.9909]
[1724726826930,20.0,158.42,158.38,15.9909]
[1724726827234,20.0,158.44,158.38,22.3047]
[1724726827476,20.0,158.44,158.39,6.3135]
[1724726827986,26.55950404,158.44,158.39,6.3135]
[1724726828364,6.55950404,158.44,158.39,16.08269625]
[1724726828584,6.55950404,158.44,158.4,7.57539469]
[1724726829082,20.0,158.46,158.41,16.08179625]
[1724726829896,6.55861003,158.47,158.41,25.55019625]
[1724726830059,6.55861003,158.47,158.45,6.3108]
[1724726830249,20.0,158.5,158.45,16.07999625]
[1724726830451,26.55939509,158.5,158.45,16.07999625]
[1724726830859,6.55939509,158.5,158.45,9.76919625]
[1724726831098,9.769196,158.51,158.47,31.85449625]
[1724726831099,29.769196,158.51,158.47,31.85449625]
[1724726831251,29.769196,158.51,158.47,15.7751]
[1724726831462,16.32651606,158.51,158.47,15.7751]
[1724726831867,6.55732006,158.51,158.47,15.7751]
[1724726833360,20.0,158.5,158.45,16.08029625]
[1724726834755,20.0,158.5,158.46,6.3106]
[1724726834960,20.0,158.5,158.47,6.3099]
[1724726836251,6.55732006,158.51,158.49,25.54289625]
[1724726836386,20.0,158.54,158.49,25.54289625]
[1724726836688,26.55818528,158.54,158.49,25.54289625]
[1724726837198,381.3,158.57,158.51,9.76919625]
[1724726837571,381.3,158.57,158.52,15.7706]
[1724726837764,381.3,158.57,158.53,9.76919625]
[1724726838460,381.3,158.57,158.52,15.7706]
[1724726838798,381.3,158.57,158.53,9.76919625]
[1724726838963,20.0,158.6,158.53,9.76919625]
[1724726839315,26.56443499,158.6,158.55,9.76919625]
[1724726839476,6.56443499,158.6,158.55,16.07629625]
[1724726840359,26.56443499,158.6,158.55,16.07629625]
[1724726843002,6.56443499,158.6,158.55,16.07629625]
[1724726843313,26.56443499,158.6,158.56,6.3064]
[1724726843518,20.0,158.6,158.56,6.3064]
[1724726843898,26.56458927,158.62,158.56,6.3064]
[1724726844090,26.56458927,158.62,158.57,6.3062]
[1724726844294,6.56458927,158.62,158.57,16.07539625]
[1724726844616,6.56458927,158.62,158.57,6.3062]
[1724726844817,20.0,158.6,158.55,22.0741]
[1724726845090,20.0,158.6,158.54,6.3075]
[1724726845823,45.0,158.59,158.54,16.07669625]
[1724726846153,6.56458927,158.62,158.56,9.76919625]
[1724726846420,20.0,158.66,158.61,9.76919625]
[1724726846724,26.6172,158.68,158.62,6.3043]
[1724726846926,26.56395132,158.68,158.61,25.53019625]
[1724726847235,36.33314732,158.68,158.62,1.26075497]
[1724726847522,36.33314732,158.68,158.61,31.83449625]
[1724726848092,36.33314732,158.68,158.61,22.0653]
[1724726848430,36.33314732,158.68,158.62,1.26074341]
[1724726848814,36.33314732,158.68,158.61,22.0653]
[1724726848925,36.33314732,158.68,158.62,6.3043]
[1724726849497,45.0,158.67,158.62,6.3043]
[1724726851128,20.0,158.66,158.61,15.761]
[1724726851305,45.0,158.65,158.61,15.761]
[1724726852905,45.0,158.65,158.61,22.0657]
[1724726853218,20.0,158.66,158.61,22.0657]
[1724726857103,26.56906502,158.66,158.59,6.3052]
[1724726857307,20.0,158.64,158.58,6.3059]
[1724726857508,20.0,158.62,158.57,15.765]
[1724726858437,45.0,158.61,158.56,16.4335]
[1724726858810,20.0,158.6,158.53,15.7694]
[1724726859023,45.0,158.59,158.53,15.7694]
[1724726859615,45.0,158.59,158.55,6.3071]
[1724726860516,45.0,158.59,158.53,15.7694]
[1724726861449,45.0,158.59,158.54,6.3071]
[1724726865630,44.92998769,158.59,158.54,6.3071]
[1724726868108,44.92998769,158.59,158.54,16.10069797]
[1724726874063,44.92998769,158.59,158.55,6.3068]
[1724726874429,44.92998769,158.59,158.55,7.56810441]
[1724726874621,44.92998769,158.59,158.55,6.3068]
[1724726877346,44.92998769,158.59,158.54,16.10099797]
[1724726878137,44.92998769,158.59,158.54,9.79359797]
[1724726878345,20.0,158.57,158.52,9.79359797]
[1724726878920,20.0,158.57,158.51,6.3084]
[1724726879244,45.0,158.56,158.51,6.3084]
[1724726881139,45.0,158.56,158.52,6.3083]
[1724726883655,45.0,158.56,158.51,6.3087]
[1724726884947,12.87677733,158.58,158.54,9.79359797]
[1724726884948,6.57057733,158.58,158.54,9.79359797]
[1724726885258,6.4595,158.6,158.54,9.79359797]
[1724726885259,6.4595,158.6,158.56,9.79359797]
[1724726887055,20.0,158.59,158.54,31.86909797]
[1724726887657,6.4595,158.6,158.55,7.56837815]
[1724726887833,45.0,158.59,158.56,16.10019797]
[1724726888033,6.56816613,158.61,158.57,6.3061]
[1724726888236,6.56816613,158.61,158.56,16.10019797]
[1724726889225,6.56816613,158.61,158.56,9.79359797]
[1724726889333,45.0,158.6,158.56,9.79359797]
[1724726889736,6.56816613,158.61,158.56,9.79359797]
[1724726890360,6.56816613,158.61,158.57,6.306]
[1724726890542,6.56816613,158.61,158.57,7.56717629]
[1724726890857,26.4595,158.64,158.59,6.3055]
[1724726891062,20.0,158.64,158.6,9.79359797]
[1724726891537,20.0,158.64,158.58,16.09939797]
[1724726892636,45.0,158.63,158.58,16.09939797]
[1724726893633,45.0,158.63,158.58,9.79359797]
[1724726893833,20.0,158.62,158.57,6.3061]
[1724726894163,45.0,158.61,158.57,7.56722723]
[1724726894373,45.0,158.63,158.57,7.56722723]
[1724726894537,45.0,158.63,158.58,7.56690076]
[1724726894950,45.0,158.63,158.58,6.3058]
[1724726895258,45.0,158.63,158.57,6.3063]
[1724726895573,20.0,158.61,158.56,22.0726]
[1724726895766,20.0,158.61,158.56,15.766]
[1724726896762,20.0,158.59,158.53,22.2886]
[1724726896954,45.0,158.58,158.53,22.2886]
[1724726897672,26.3048,158.61,158.54,16.10099797]
[1724726897874,45.0,158.6,158.54,17.3623022]
[1724726898077,45.0,158.6,158.54,16.10099797]
[1724726898458,45.0,158.6,158.54,17.36230213]
[1724726899141,45.0,158.6,158.54,16.10099797]
[1724726899391,45.0,158.6,158.55,15.7678]
[1724726899563,45.0,158.6,158.56,6.3066]
[1724726899875,45.0,158.61,158.56,6.3066]
[1724726900551,65.0,158.61,158.56,6.3066]
[1724726901075,45.0,158.61,158.56,6.3066]
[1724726901647,51.56832279,158.61,158.56,6.3066]
[1724726902570,51.56832279,158.61,158.55,22.0749]
[1724726904074,45.0,158.61,158.56,11.0547464]
[1724726904270,20.0,158.63,158.57,6.3063]
[1724726904570,6.57032995,158.62,158.57,6.3063]
[1724726905869,6.57032995,158.62,158.58,6.3058]
[1724726906170,26.3033,158.65,158.58,16.09939797]
[1724726906475,45.0,158.64,158.58,16.09939797]
[1724726906670,45.0,158.64,158.6,6.305]
[1724726906892,45.0,158.64,158.59,1.26096091]
[1724726907750,45.0,158.64,158.59,7.56646091]
[1724726908354,45.0,158.64,158.59,6.3055]
[1724726910967,45.0,158.64,158.58,9.79359797]
[1724726911473,26.3048,158.61,158.54,28.2197]
[1724726911775,45.0,158.6,158.54,22.0761]
[1724726912661,45.0,158.6,158.55,6.307]
[1724726916757,51.56803788,158.6,158.55,6.307]
[1724726918863,51.56803788,158.6,158.56,6.3065]
[1724726919067,6.56803788,158.6,158.56,16.10009797]
[1724726919263,26.304,158.63,158.56,16.10009797]
[1724726919463,51.56918266,158.62,158.56,16.10009797]
[1724726920693,51.56918266,158.62,158.56,6.3065]
[1724726929189,51.56918266,158.62,158.57,9.79359797]
[1724726929768,20.0,158.61,158.54,22.0761]
[1724726930007,20.0,158.61,158.54,31.86969797]
[1724726930484,6.56900442,158.6,158.55,6.3071]
[1724726930687,45.0,158.59,158.55,6.3071]
[1724726931684,45.0,158.59,158.54,31.86969797]
[1724726932062,6.56900442,158.6,158.54,31.86969797]
[1724726932264,6.56900442,158.6,158.56,9.79359797]
[1724726933591,6.56900442,158.6,158.54,15.7687]
[1724726933784,6.56900442,158.6,158.56,6.3066]
[1724726937594,26.304,158.63,158.56,6.3066]
[1724726937781,45.0,158.62,158.56,6.3066]
[1724726938599,45.0,158.62,158.55,6.3071]
[1724726939693,51.3043,158.62,158.55,6.3071]
[1724726940797,26.3051,158.61,158.54,31.86979797]
[1724726941105,45.0,158.6,158.54,31.86979797]
[1724726942965,51.3052,158.6,158.54,15.7687]
[1724726943578,51.3052,158.6,158.55,1.26129069]
[1724726943786,51.3052,158.6,158.54,15.7687]
[1724726944193,51.3052,158.6,158.54,22.0762]
[1724726945282,20.0,158.59,158.51,25.56529797]
[1724726945495,45.0,158.58,158.51,25.56529797]
[1724726945978,45.0,158.58,158.52,6.308]
[1724726946800,20.0,158.57,158.51,15.7717]
[1724726947103,45.0,158.56,158.49,6.3095]
[1724726947315,54.79359797,158.56,158.49,6.3095]
[1724726947606,20.0,158.55,158.49,6.3095]
[1724726947782,45.0,158.54,158.49,6.3095]
[1724726948106,51.57185637,158.54,158.47,25.56849797]
[1724726949903,51.57185637,158.54,158.48,6.3099]
[1724726952008,51.57185637,158.54,158.49,6.3092]
[1724726952214,6.57185637,158.54,158.49,16.10279797]
[1724726955398,6.3084,158.52,158.45,28.4172]
[1724726955710,6.57185637,158.54,158.5,6.309]
[1724726955882,45.0,158.53,158.47,15.7754]
[1724726956082,45.0,158.53,158.48,6.3095]
[1724726956485,65.0,158.53,158.48,6.3095]
[1724726956915,45.0,158.53,158.48,6.3095]
[1724726957220,45.0,158.53,158.47,15.7754]
[1724726957221,45.0,158.53,158.47,22.0857]
[1724726957518,6.57185637,158.54,158.48,16.10309797]
[1724726960306,12.87935637,158.54,158.48,16.10309797]
[1724726960509,45.0,158.53,158.48,16.10309797]
[1724726961037,20.0,158.52,158.45,16.0119]
[1724726961200,45.0,158.51,158.45,25.80549797]
[1724726961408,45.0,158.51,158.45,32.11619797]
[1724726961808,51.3087,158.51,158.45,6.3107]
[1724726962103,45.0,158.51,158.44,22.0899]
[1724726962532,45.0,158.51,158.44,15.7785]
[1724726963324,51.3088,158.51,158.44,22.0899]
[1724726965505,20.0,158.5,158.43,15.7795]
[1724726965708,45.0,158.49,158.41,31.77699797]
[1724726965914,45.0,158.49,158.43,6.3115]
[1724726968616,51.3096,158.49,158.42,6.3122]
[1724726968924,20.0,158.48,158.43,6.3119]
[1724726969106,45.0,158.47,158.43,6.3119]
[1724726969316,51.3096,158.49,158.43,6.3119]
[1724726970005,51.3096,158.49,158.41,25.57439797]
[1724726970006,20.0,158.48,158.41,31.88689797]
[1724726970204,45.0,158.47,158.41,31.88689797]
[1724726971757,51.57160401,158.47,158.41,31.88689797]
[1724726972501,57.88200401,158.47,158.41,15.7808]
[1724726973236,26.3107,158.46,158.39,16.10709797]
[1724726973433,20.0,158.46,158.41,6.3125]
[1724726973599,6.57160401,158.47,158.41,9.79359797]
[1724726973799,20.0,158.5,158.43,9.79359797]
[1724726974022,26.57111444,158.5,158.44,6.3115]
[1724726974411,32.88031444,158.5,158.43,16.10539797]
[1724726975217,32.88031444,158.5,158.42,22.0921]
[1724726975218,26.3099,158.48,158.42,22.0921]
[1724726975703,45.0,158.47,158.42,15.7799]
[1724726975902,20.0,158.46,158.41,9.79359797]
[1724726976134,20.0,158.46,158.4,6.313]
[1724726976135,45.0,158.45,158.4,6.313]
[1724726980438,45.0,158.45,158.41,6.3126]
[1724726980747,26.31,158.48,158.41,15.7817]
[1724726980930,45.0,158.47,158.41,25.57529797]
[1724726981119,45.0,158.47,158.41,22.094]
[1724726981322,45.0,158.47,158.43,9.79359797]
[1724726982127,20.0,158.46,158.41,15.7817]
[1724726982329,45.0,158.45,158.41,15.7817]
[1724726984044,387.87111444,158.5,158.41,15.7817]
[1724726984045,407.87111444,158.5,158.43,15.7789]
[1724726984241,20.0,158.48,158.43,15.7789]
[1724726984430,20.0,158.46,158.39,15.7833]
[1724726984788,20.0,158.46,158.4,9.79359797]
[1724726984926,20.0,158.46,158.4,16.10649797]
[1724726985182,12.88626461,158.49,158.42,16.10579797]
[1724726985373,45.0,158.48,158.42,6.3122]
[1724726985538,20.0,158.47,158.42,6.3122]
[1724726985719,45.0,158.46,158.42,6.3122]
[1724726985921,45.0,158.46,158.41,16.10629797]
[1724726987049,45.0,158.47,158.41,16.10629797]
[1724726987220,45.0,158.47,158.42,15.7801]
[1724726987437,45.0,158.48,158.42,15.7801]
[1724726987754,20.0,158.47,158.41,9.79359797]
[1724726987922,45.0,158.46,158.41,9.79359797]
[1724726988128,45.0,158.46,158.41,16.10629797]
[1724726992218,20.0,158.45,158.39,16.10669797]
[1724726992366,45.0,158.44,158.4,6.3131]
[1724726993167,45.0,158.44,158.38,22.0975]
[1724726993464,45.0,158.44,158.39,6.3134]
[1724726997052,20.0,158.43,158.38,15.784]
[1724726997364,45.0,158.42,158.38,15.784]
[1724726998468,45.0,158.42,158.38,22.0978]
[1724726998645,45.0,158.42,158.39,6.3134]
[1724726998859,45.0,158.43,158.39,6.3134]
[1724727002268,65.0,158.43,158.39,6.3134]
[1724727002766,45.0,158.43,158.39,6.3134]
[1724727003834,6.57359084,158.44,158.4,6.3131]
[1724727010496,6.57359084,158.44,158.42,6.3121]
[1724727010671,20.0,158.45,158.42,6.3121]
[1724727011276,20.0,158.45,158.41,17.04391652]
[1724727011277,20.0,158.45,158.41,23.35651652]
[1724727012176,6.57237048,158.47,158.43,6.3118]
[1724727012384,6.57237048,158.47,158.45,6.311]
[1724727012670,20.0,158.49,158.44,31.88359797]
[1724727013771,45.0,158.48,158.44,31.88359797]
[1724727013963,45.0,158.48,158.44,25.57219797]
[1724727014355,20.0,158.49,158.44,26.83441437]
[1724727015176,387.87274906,158.5,158.44,33.14571437]
[1724727015477,45.0,158.49,158.44,33.14571437]
[1724727015867,426.3,158.49,158.44,33.14571437]
[1724727017869,381.3,158.49,158.45,6.3107]
[1724727021586,381.3,158.49,158.44,31.88349797]
[1724727021880,6.57274906,158.5,158.44,31.88349797]
[1724727022080,45.0,158.49,158.44,31.88349797]
[1724727022863,45.0,158.49,158.44,15.7786]
[1724727023161,45.0,158.49,158.44,22.09]
[1724727025583,45.0,158.49,158.45,6.311]
[1724727028588,6.57274906,158.5,158.46,7.57270975]
[1724727028883,6.57274906,158.5,158.46,17.36630772]
[1724727029068,26.3083,158.53,158.46,17.36630772]
[1724727029262,51.56811452,158.52,158.46,17.36630772]
[1724727029682,20.0,158.51,158.46,16.10419797]
[1724727029924,51.56811452,158.52,158.47,7.57229824]
[1724727030068,51.56811452,158.52,158.47,23.11529824]
[1724727031073,45.0,158.52,158.47,23.11529824]
[1724727031271,45.0,158.53,158.47,23.11529824]
[1724727031672,51.56801823,158.53,158.47,23.11529824]
[1724727034402,51.56801823,158.53,158.48,6.3098]
[1724727038086,51.56801823,158.53,158.49,6.3094]
[1724727038416,51.56801823,158.53,158.49,7.57121465]
[1724727038909,6.56801823,158.53,158.5,9.79359797]
[1724727039110,20.0,158.56,158.52,15.7708]
[1724727039480,20.0,158.56,158.51,6.3086]
[1724727040276,45.0,158.55,158.51,6.3086]
[1724727040695,65.0,158.56,158.51,6.3086]
[1724727042400,45.0,158.56,158.52,6.3081]
[1724727042642,45.0,158.56,158.53,6.3079]
[1724727043606,6.57008295,158.57,158.52,11.05510507]
[1724727043786,20.0,158.62,158.54,11.05510575]
[1724727043994,6.3047,158.61,158.54,17.36260575]
[1724727044187,12.87618021,158.61,158.54,17.36260575]
[1724727044380,12.87618021,158.61,158.55,1.26132369]
[1724727044704,12.87618021,158.61,158.55,6.307]
[1724727045197,12.87618021,158.61,158.55,7.56832685]
[1724727045398,12.87618021,158.61,158.55,6.307]
[1724727046591,45.0,158.6,158.55,6.307]
[1724727050094,20.0,158.59,158.53,15.7689]
[1724727050300,45.0,158.58,158.53,15.7689]
[1724727050592,45.0,158.58,158.54,6.3074]
[1724727050807,45.0,158.59,158.54,6.3074]
[1724727051806,65.0,158.59,158.54,6.3074]
[1724727052717,65.0,158.59,158.53,15.7689]
[1724727052889,71.3055,158.59,158.53,22.0766]
[1724727053291,65.0,158.59,158.53,22.0766]
[1724727054412,71.56856278,158.59,158.53,22.0766]
[1724727054611,51.56856278,158.59,158.54,6.3075]
[1724727054994,71.56856278,158.59,158.54,6.3075]
[1724727056419,51.56856278,158.59,158.54,6.3075]
[1724727056718,71.56856278,158.59,158.54,6.3075]
[1724727057295,51.56856278,158.59,158.54,6.3075]
[1724727058214,71.56856278,158.59,158.54,6.3075]
[1724727059303,51.56856278,158.59,158.54,6.3075]
[1724727059504,6.56856278,158.59,158.55,1.2613818]
[1724727059696,6.56856278,158.59,158.57,6.3063]
[1724727059894,26.3042,158.63,158.57,6.3063]
[1724727060225,6.5673947,158.62,158.57,6.3063]
[1724727061497,6.5673947,158.62,158.58,1.26109385]
[1724727061716,6.3035,158.64,158.58,7.56699385]
[1724727061920,45.0,158.63,158.58,7.56699385]
[1724727062219,6.3035,158.64,158.58,7.56699385]
[1724727063500,45.0,158.63,158.58,7.56699385]
[1724727069705,51.3041,158.63,158.59,1.2609842]
[1724727069903,51.3041,158.63,158.58,9.79359797]
[1724727070109,45.0,158.63,158.58,9.79359797]
[1724727071209,45.0,158.63,158.58,11.05458286]
[1724727071833,45.0,158.63,158.58,17.36038286]
[1724727074936,21.85728104,158.65,158.59,6.3054]
[1724727075128,6.56838104,158.65,158.6,1.26085731]
[1724727075721,26.56838104,158.65,158.6,1.26085731]
[1724727076045,32.87158104,158.65,158.59,6.3054]
[1724727076535,32.87158104,158.65,158.6,1.26089665]
[1724727078240,32.87158104,158.65,158.59,6.3054]
[1724727078413,32.87158104,158.65,158.59,7.56629661]
[1724727078629,32.87158104,158.65,158.59,6.3054]
[1724727083028,32.87158104,158.65,158.58,16.09949797]
[1724727084011,32.87158104,158.65,158.59,6.3054]
[1724727090940,32.87158104,158.65,158.59,7.5662971]
[1724727091145,6.56838104,158.65,158.59,1.2608971]
[1724727091338,6.56838104,158.65,158.6,26.81709496]
[1724727091544,22.0672,158.68,158.61,7.56510646]
[1724727091730,28.66216796,158.68,158.61,7.56510646]
[1724727091927,28.66216796,158.68,158.61,22.70750646]
[1724727092619,45.0,158.67,158.62,6.3042]
[1724727093414,45.0,158.67,158.62,7.56487002]
[1724727093662,6.59496796,158.68,158.62,26.81426799]
[1724727093855,6.59496796,158.68,158.65,15.7574]
[1724727094342,6.59496796,158.68,158.65,22.0605]
[1724727095236,6.59496796,158.68,158.65,15.7574]
[1724727096943,6.59496796,158.68,158.65,17.01788632]
[1724727097247,6.59496796,158.68,158.65,15.7574]
[1724727098342,6.59496796,158.68,158.65,1.26042707]
[1724727098545,6.59496796,158.68,158.61,37.2093]
[1724727098719,6.59496796,158.68,158.62,9.79359797]
[1724727099930,6.59496796,158.68,158.63,6.3036]
[1724727101168,6.59496796,158.68,158.64,6.3035]
[1724727101349,6.3014,158.7,158.65,1.26048584]
[1724727101736,6.3014,158.7,158.64,6.3035]
[1724727102726,6.5955737,158.71,158.7,6.3011]
[1724727102943,20.0,158.79,158.7,15.7529]
[1724727103138,6.59345549,158.79,158.72,6.3003]
[1724727103532,6.59345549,158.79,158.73,6.2998]
[1724727103749,6.59345549,158.79,158.72,1.25987003]
[1724727104130,12.89105549,158.79,158.73,6.2999]
[1724727105144,6.59345549,158.79,158.73,6.2999]
[1724727105346,6.59345549,158.79,158.74,1.25980252]
[1724727105550,6.59345549,158.79,158.73,7.55968553]
[1724727106039,6.2988,158.76,158.7,22.054]
[1724727106233,26.2986,158.77,158.7,22.054]
[1724727106548,45.0,158.76,158.7,22.054]
[1724727107351,45.0,158.76,158.71,6.3007]
[1724727110054,45.0,158.76,158.7,22.054]
[1724727110259,6.2992,158.75,158.68,6.3016]
[1724727110458,6.2992,158.75,158.67,9.79359797]
[1724727110834,61.09239797,158.76,158.69,6.3015]
[1724727112577,61.09239797,158.76,158.7,6.3011]
[1724727113258,45.0,158.76,158.71,7.560766]
[1724727113464,45.0,158.77,158.71,7.560766]
[1724727113840,51.59385572,158.77,158.71,7.560766]
[1724727114363,51.59385572,158.77,158.72,1.25994981]
[1724727115769,81.38745369,158.77,158.69,6.3015]
[1724727116170,6.2988,158.76,158.69,6.3015]
[1724727116379,45.0,158.75,158.69,6.3015]
[1724727117167,45.0,158.75,158.7,6.3011]
[1724727118269,45.0,158.75,158.68,22.0556]
[1724727118642,45.0,158.75,158.69,6.3014]
[1724727121063,6.2988,158.76,158.7,7.56117054]
[1724727121360,6.2988,158.76,158.71,1.25995239]
[1724727122672,12.89225572,158.77,158.71,1.25995239]
[1724727122971,45.0,158.76,158.71,1.25995239]
[1724727124071,423.4944,158.81,158.71,11.05355036]
[1724727124280,9.793598,158.79,158.71,11.05355036]
[1724727124466,9.793598,158.79,158.75,9.79359797]
[1724727124654,9.793598,158.79,158.73,15.7499]
[1724727124655,6.59328714,158.8,158.74,7.55882452]
[1724727124853,12.89048714,158.8,158.74,7.55882452]
[1724727127268,6.59328714,158.8,158.75,6.299]
[1724727127470,6.59328714,158.8,158.76,1.2596109]